bitfinex/quotes_ETHUSD_20250329
["timestamp","ask_amount","ask_price","bid_price","bid_amount"]
[1743224004197,15.08068964,1898.1,1898.0,0.09649077]
[1743224004400,15.08068964,1898.1,1897.7,5.26948]
[1743224004596,5.26872,1898.0,1897.6,6.85837972]
[1743224005195,5.26872,1898.0,1897.6,12.12807972]
[1743224006797,15.08063964,1898.1,1897.7,5.26948]
[1743224007299,5.26871,1898.0,1897.6,6.85837972]
[1743224007692,10.53765,1898.0,1897.6,6.85837972]
[1743224007899,5.26871,1898.0,1897.6,6.08337]
[1743224009166,5.26871,1898.0,1897.6,11.35298]
[1743224009372,5.26871,1898.0,1897.6,5.26961]
[1743224009682,5.26871,1898.0,1897.5,6.35181924]
[1743224009683,5.26904,1897.9,1897.5,6.35181924]
[1743224011473,10.53825,1897.9,1897.5,5.27005]
[1743224011689,6.02146,1897.8,1897.4,6.08401]
[1743224016912,6.02146,1897.8,1897.5,0.09751398]
[1743224019005,9.73975474,1897.6,1897.5,0.09751398]
[1743224019205,12.73975474,1897.6,1897.5,0.09751398]
[1743224019408,3.0,1897.4,1896.9,5.27162]
[1743224019588,14.01597964,1897.4,1897.0,5.798522]
[1743224019782,19.28645964,1897.4,1897.0,5.96812605]
[1743224020193,6.09969,1897.3,1897.0,0.69676605]
[1743224020594,6.09969,1897.3,1897.0,0.527162]
[1743224020993,6.09969,1897.3,1897.1,0.16883605]
[1743224024413,0.829,1897.3,1897.1,0.16883605]
[1743224024590,0.55,1897.6,1897.3,5.82064]
[1743224024591,3.09094474,1897.6,1897.3,5.82064]
[1743224024797,0.5288,1898.6,1897.2,0.8311]
[1743224024798,6.889,1898.9,1898.8,5.26648]
[1743224025120,6.889,1898.9,1898.6,5.26688]
[1743224025430,3.0,1898.8,1898.7,0.03977206]
[1743224025591,13.17294474,1898.8,1898.7,0.03977206]
[1743224025796,5.26679,1898.7,1898.2,5.26789]
[1743224026113,5.057,1898.6,1898.2,5.26789]
[1743224026420,5.055,1898.6,1898.2,5.26789]
[1743224026987,5.055,1898.6,1898.2,10.53591]
[1743224027183,3.09094474,1898.8,1898.4,5.26733]
[1743224027414,8.056,1898.8,1898.5,5.26729]
[1743224027615,8.057,1898.8,1898.4,5.26733]
[1743224027917,8.057,1898.8,1898.4,10.53479]
[1743224028413,8.057,1898.8,1898.5,0.04065979]
[1743224028618,10.078224,1898.8,1898.5,0.04065979]
[1743224028791,10.078224,1898.8,1898.5,5.30794979]
[1743224030424,8.057,1898.8,1898.5,5.30794979]
[1743224032028,8.057,1898.8,1898.6,0.11710982]
[1743224032416,8.057,1898.8,1898.7,0.03977206]
[1743224032815,8.057,1898.8,1898.6,0.11710982]
[1743224033011,8.057,1898.8,1898.7,0.03977206]
[1743224033192,10.078222,1898.8,1898.7,0.03977206]
[1743224033397,10.078222,1898.8,1898.4,5.26733]
[1743224034731,10.078222,1898.8,1898.4,10.53477]
[1743224035030,10.078222,1898.8,1898.4,5.26733]
[1743224035329,10.078222,1898.8,1898.4,10.53481]
[1743224035526,8.057,1898.8,1898.4,5.26733]
[1743224035701,13.32368,1898.8,1898.3,6.09481]
[1743224035901,16.41462474,1898.8,1898.3,6.09481]
[1743224036110,16.41462474,1898.8,1898.4,0.04110373]
[1743224039235,21.68135474,1898.8,1898.4,0.04110373]
[1743224039906,16.41462474,1898.8,1898.4,0.04110373]
[1743224041338,16.41462474,1898.8,1898.4,5.30858373]
[1743224041633,3.0,1898.6,1898.4,0.04110373]
[1743224043533,0.7788,1898.5,1898.4,0.04110373]
[1743224043703,6.04611,1898.5,1898.4,0.04110373]
[1743224043905,6.04611,1898.5,1898.1,10.53639]
[1743224044111,5.26731,1898.5,1898.4,0.04110373]
[1743224044315,5.26731,1898.5,1898.2,5.26813]
[1743224044736,11.35804474,1898.6,1898.2,5.26813]
[1743224046039,11.35804474,1898.6,1898.1,10.53637]
[1743224046217,5.26732,1898.5,1898.1,10.53637]
[1743224046406,5.26732,1898.5,1898.1,11.668757]
[1743224046601,3.7788,1898.4,1898.1,1.132387]
[1743224046831,3.7788,1898.4,1897.9,5.65533853]
[1743224046832,5.26871,1898.0,1897.6,5.26981]
[1743224047038,3.09094474,1898.0,1897.6,5.26981]
[1743224047333,3.09094474,1898.0,1897.7,0.526981]
[1743224047633,3.0,1897.9,1897.5,0.7875]
[1743224047843,8.36020474,1897.8,1897.4,5.852424]
[1743224048137,3.09094474,1897.8,1897.5,5.27008]
[1743224048334,3.09094474,1897.8,1897.4,5.852424]
[1743224048540,8.36032474,1897.8,1897.4,5.852424]
[1743224048926,8.36032474,1897.8,1897.4,0.582064]
[1743224049535,8.36032474,1897.8,1897.4,5.852274]
[1743224049738,8.36032474,1897.8,1897.5,5.27007]
[1743224049739,3.09094474,1897.8,1897.5,5.27007]
[1743224049943,3.09094474,1897.8,1897.4,11.122504]
[1743224050115,3.09094474,1897.8,1897.4,11.122534]
[1743224050322,3.09094474,1897.8,1897.4,5.852274]
[1743224050829,8.36022474,1897.8,1897.4,5.852274]
[1743224054759,3.09094474,1897.8,1897.5,5.27004]
[1743224054941,3.09094474,1897.8,1897.4,5.852274]
[1743224055127,3.0,1897.8,1897.4,5.90497178]
[1743224055336,8.26933,1897.8,1897.4,5.852274]
[1743224056964,5.26961,1897.7,1897.4,0.582064]
[1743224057958,10.53938,1897.7,1897.4,0.582064]
[1743224058146,10.53938,1897.7,1897.2,5.27064]
[1743224058458,6.09059,1897.5,1897.1,6.58480661]
[1743224058655,3.0,1897.6,1897.2,5.27067]
[1743224059018,8.26981,1897.6,1897.2,5.27067]
[1743224060689,6.09088,1897.4,1897.1,1.60463427]
[1743224061974,5.27066,1897.3,1897.0,27.884]
[1743224062149,8.36190474,1897.2,1897.1,0.04687917]
[1743224062472,5.27096,1897.2,1896.8,5.27203]
[1743224062647,9.18187474,1897.4,1897.1,0.14857493]
[1743224062856,5.27081,1897.3,1896.9,5.27164]
[1743224063045,5.27081,1897.3,1897.2,0.14780702]
[1743224063246,5.27081,1897.3,1896.9,5.27164]
[1743224063445,9.09091,1897.4,1897.2,0.14780702]
[1743224063656,9.09091,1897.4,1896.9,5.27169]
[1743224063856,9.09091,1897.4,1897.3,0.1473686]
[1743224064056,9.09091,1897.4,1897.0,5.798609]
[1743224064276,9.09091,1897.4,1897.3,0.1473686]
[1743224064479,9.09091,1897.4,1897.0,5.798609]
[1743224064976,9.09091,1897.4,1897.1,0.14890436]
[1743224066180,3.8205,1897.4,1897.1,0.14890436]
[1743224066381,5.27072,1897.3,1897.1,0.14890436]
[1743224066759,5.27092,1897.2,1897.1,0.14890436]
[1743224070151,6.02632,1897.2,1897.1,0.14890436]
[1743224072605,8.2704,1897.4,1897.1,0.14890436]
[1743224073303,13.54099,1897.4,1897.1,0.14890436]
[1743224073805,5.2708,1897.3,1897.1,0.14890436]
[1743224078604,5.27092,1897.2,1897.1,0.14890436]
[1743224079706,5.2708,1897.3,1897.1,0.14890436]
[1743224080503,10.54168,1897.3,1897.1,0.14890436]
[1743224081007,10.54157,1897.3,1897.1,0.14890436]
[1743224081503,5.27077,1897.3,1897.1,0.14890436]
[1743224081693,10.54158,1897.3,1897.1,0.14890436]
[1743224083409,5.27092,1897.2,1897.1,0.14890436]
[1743224085117,5.27077,1897.3,1897.1,0.14890436]
[1743224086474,5.27092,1897.2,1897.1,0.14890436]
[1743224088501,5.27076,1897.3,1897.1,0.14890436]
[1743224089077,5.27092,1897.2,1897.1,0.14890436]
[1743224089616,5.27076,1897.3,1897.1,0.14890436]
[1743224089803,10.54161,1897.3,1897.1,0.14890436]
[1743224091013,5.27092,1897.2,1897.1,0.14890436]
[1743224091609,6.04712,1897.2,1897.1,0.14890436]
[1743224096514,5.27092,1897.2,1897.1,0.14890436]
[1743224097918,12.49365274,1897.2,1897.1,0.14890436]
[1743224098286,5.27182,1896.9,1896.6,0.8246]
[1743224098492,10.54373,1896.9,1896.6,0.8246]
[1743224098792,10.54373,1896.9,1896.7,0.15322871]
[1743224099106,5.27203,1896.8,1896.7,0.15322871]
[1743224100420,5.76254527,1896.8,1896.7,0.15322871]
[1743224102507,0.49051527,1896.8,1896.7,0.15322871]
[1743224102816,0.49051527,1896.8,1896.7,6.23933871]
[1743224103022,0.49051527,1896.8,1896.7,6.868545]
[1743224103199,0.49051527,1896.8,1896.7,1.596235]
[1743224105122,0.49051527,1896.8,1896.7,6.868545]
[1743224105424,3.0,1897.0,1896.7,6.868545]
[1743224105738,6.06,1897.4,1897.0,5.27124]
[1743224105899,10.2556,1897.4,1897.0,0.608504]
[1743224106232,8.27068,1897.3,1897.1,0.04687917]
[1743224106395,8.27068,1897.3,1896.9,6.13814062]
[1743224106814,8.27068,1897.3,1897.0,0.10478681]
[1743224108525,11.36162474,1897.3,1897.0,0.10478681]
[1743224109488,6.06,1897.5,1897.0,0.10478681]
[1743224109694,5.26954,1897.7,1897.3,5.27047]
[1743224109995,13.34641474,1897.8,1897.4,6.08404]
[1743224110192,7.5324256,1897.9,1897.5,5.26992]
[1743224110413,7.5324256,1897.9,1897.8,0.8138]
[1743224110615,1.4724256,1897.9,1897.8,0.8138]
[1743224111219,5.26842,1898.1,1897.8,0.8138]
[1743224111397,19.40927474,1898.2,1897.8,0.8138]
[1743224111597,19.40927474,1898.2,1897.8,6.08293]
[1743224111927,6.06,1898.2,1897.9,10.59042777]
[1743224112126,6.06,1898.2,1898.0,6.08235]
[1743224113524,6.06,1898.2,1897.8,0.8138]
[1743224113525,11.32828,1898.2,1897.8,0.8138]
[1743224113715,6.09094474,1898.1,1897.7,6.08321]
[1743224114118,11.35956474,1898.1,1897.7,0.8138]
[1743224114313,16.62825474,1898.1,1897.7,0.8138]
[1743224114518,11.35956474,1898.1,1897.7,0.8138]
[1743224114706,11.35956474,1898.1,1897.7,2.05490728]
[1743224115222,11.35956474,1898.1,1897.7,7.32441728]
[1743224116133,6.09094474,1898.1,1897.7,2.05490728]
[1743224116296,6.06,1898.2,1897.9,5.26874]
[1743224116627,6.06,1898.2,1898.0,6.08128]
[1743224117230,6.06,1898.2,1898.0,0.8127]
[1743224117411,6.06,1898.2,1898.0,0.86538155]
[1743224117910,6.06,1898.2,1898.0,0.8127]
[1743224118230,6.06,1898.2,1898.0,6.08126]
[1743224118431,6.06,1898.2,1898.1,0.608126]
[1743224119703,11.08699,1898.7,1898.2,5.26788]
[1743224119898,5.26706,1898.6,1898.2,5.26788]
[1743224120128,5.26737,1898.5,1898.1,6.689186]
[1743224120354,5.26737,1898.5,1898.2,0.6689186]
[1743224122035,5.26737,1898.5,1898.2,0.72159459]
[1743224122404,5.26737,1898.5,1898.2,0.6689186]
[1743224122914,5.26737,1898.5,1898.2,0.72159459]
[1743224123929,8.35800474,1898.6,1898.2,0.72159459]
[1743224124307,13.62516474,1898.6,1898.2,0.72159459]
[1743224124532,8.35800474,1898.6,1898.2,5.98963459]
[1743224124733,8.35800474,1898.6,1898.3,0.59896346]
[1743224126017,5.8201,1898.7,1898.3,5.86678346]
[1743224126217,6.09693,1898.7,1898.3,5.86678346]
[1743224126414,11.35756474,1898.8,1898.4,0.8127]
[1743224126620,5.26688,1898.7,1898.4,0.8127]
[1743224126825,5.26688,1898.7,1898.4,1.48065135]
[1743224127337,5.26704,1898.6,1898.4,0.66795135]
[1743224127541,6.09094474,1898.8,1898.4,5.26754]
[1743224127708,11.35760474,1898.8,1898.4,5.26754]
[1743224128145,5.26676,1898.7,1898.3,5.91943447]
[1743224129153,11.35760474,1898.8,1898.4,5.26748]
[1743224129845,11.35754474,1898.8,1898.4,5.26748]
[1743224130147,11.35754474,1898.8,1898.5,0.526748]
[1743224130372,11.35754474,1898.8,1898.5,1.339448]
[1743224131219,6.09094474,1898.8,1898.5,1.339448]
[1743224131642,11.35743474,1898.8,1898.5,1.339448]
[1743224132955,6.09094474,1898.8,1898.5,6.606738]
[1743224133120,11.35751474,1898.8,1898.5,1.339448]
[1743224134745,8.26649,1898.8,1898.5,1.339448]
[1743224135729,5.26678,1898.7,1898.5,0.8127]
[1743224136060,5.26678,1898.7,1898.3,5.86677346]
[1743224136262,5.26678,1898.7,1898.3,6.69057346]
[1743224136438,13.53321,1898.8,1898.3,6.69038346]
[1743224136849,5.26684,1898.7,1898.3,6.69038346]
[1743224137020,5.26684,1898.7,1898.4,0.66903835]
[1743224137452,8.26649,1898.8,1898.4,0.66903835]
[1743224137636,8.26649,1898.8,1898.4,5.93662835]
[1743224137836,5.26676,1898.7,1898.4,0.66903835]
[1743224138560,8.26649,1898.8,1898.4,5.93658835]
[1743224138738,5.26686,1898.7,1898.5,0.59365884]
[1743224138938,5.26686,1898.7,1898.4,0.66903835]
[1743224139552,8.26649,1898.8,1898.5,0.8238]
[1743224139759,5.26681,1898.7,1898.5,0.8238]
[1743224141228,13.53314,1898.8,1898.5,0.8238]
[1743224141969,5.26679,1898.7,1898.5,0.8238]
[1743224147157,8.26649,1898.8,1898.5,0.8238]
[1743224147462,13.53321,1898.8,1898.5,0.8238]
[1743224147757,5.26683,1898.7,1898.5,0.8238]
[1743224147964,5.26683,1898.7,1898.4,0.66903835]
[1743224148167,8.35777474,1898.7,1898.4,0.66903835]
[1743224148977,3.09094474,1898.5,1898.3,0.7975]
[1743224149269,3.09094474,1898.5,1898.2,5.26814]
[1743224149471,5.26722,1898.6,1898.2,5.26814]
[1743224150964,9.11934474,1898.7,1898.3,5.26782]
[1743224151161,3.09094474,1898.7,1898.4,6.0649]
[1743224151371,3.0,1898.8,1898.5,5.87363]
[1743224151543,3.0,1898.8,1898.5,0.60649]
[1743224151746,8.26648,1898.8,1898.5,0.60649]
[1743224152142,5.26789,1898.3,1898.1,0.7975]
[1743224152455,3.09094474,1898.2,1897.9,0.7975]
[1743224153570,8.35913474,1898.2,1897.9,0.7975]
[1743224153868,8.35913474,1898.2,1897.8,33.95156]
[1743224154073,8.35913474,1898.2,1897.9,3.395156]
[1743224154248,3.09094474,1898.2,1897.9,3.395156]
[1743224154565,3.09094474,1898.2,1897.9,8.664096]
[1743224154938,3.09094474,1898.2,1897.9,3.395156]
[1743224156168,8.35910474,1898.2,1897.9,3.395156]
[1743224157258,13.62748474,1898.2,1897.9,3.395156]
[1743224157884,8.35910474,1898.2,1897.9,3.395156]
[1743224158067,8.35910474,1898.2,1898.0,0.3395156]
[1743224158678,6.46106273,1898.5,1898.3,5.26787]
[1743224158679,6.06,1898.5,1898.3,5.26787]
[1743224158835,6.06,1898.5,1898.4,5.26759]
[1743224161588,0.7615,1898.7,1898.4,5.26759]
[1743224162447,9.13637474,1898.8,1898.4,5.26759]
[1743224162774,9.13637474,1898.8,1898.4,6.03009]
[1743224163159,5.26676,1898.7,1898.3,6.03037]
[1743224163672,3.09094474,1898.6,1898.1,11.29896]
[1743224164177,8.35810474,1898.6,1898.2,5.26813]
[1743224166975,5.26676,1898.7,1898.2,5.26813]
[1743224167182,5.26705,1898.6,1898.3,0.526813]
[1743224167388,5.26676,1898.7,1898.3,0.526813]
[1743224167587,5.26676,1898.7,1898.3,5.794613]
[1743224169181,10.53378,1898.7,1898.3,5.794613]
[1743224169689,5.26676,1898.7,1898.3,5.2678]
[1743224175083,8.35799474,1898.6,1898.1,6.03081]
[1743224175291,6.04622,1898.5,1898.1,6.03081]
[1743224176963,6.04622,1898.5,1898.0,6.67497918]
[1743224177169,5.26774,1898.4,1898.0,5.6081956]
[1743224180200,3.09094474,1898.1,1897.8,0.8054]
[1743224180421,8.36004474,1897.9,1897.6,1.06769759]
[1743224180605,5.26926,1897.8,1897.4,5.27014]
[1743224181905,3.09094474,1897.7,1897.3,6.076]
[1743224182083,3.09094474,1897.7,1897.4,0.6076]
[1743224182283,3.09094474,1897.7,1897.4,5.87793]
[1743224184008,9.14942474,1897.9,1897.4,5.87777]
[1743224184304,14.41865474,1897.9,1897.4,5.87777]
[1743224184878,5.26927,1897.8,1897.4,5.87777]
[1743224185181,5.26927,1897.8,1897.5,0.587777]
[1743224186502,9.14942474,1897.9,1897.5,0.587777]
[1743224186873,14.41864474,1897.9,1897.5,0.587777]
[1743224187321,5.26928,1897.8,1897.5,0.587777]
[1743224193319,9.14942474,1897.9,1897.5,5.857847]
[1743224193517,14.41865474,1897.9,1897.5,5.857847]
[1743224193710,5.26927,1897.8,1897.5,0.587777]
[1743224194319,6.06,1898.1,1897.6,0.7698]
[1743224194523,5.26804,1898.3,1897.8,0.7698]
[1743224194819,3.0,1898.2,1897.9,5.26879]
[1743224194998,3.0,1898.2,1897.9,5.872649]
[1743224198125,8.26787,1898.3,1897.9,0.603859]
[1743224198426,3.0,1898.1,1897.8,6.03879]
[1743224201124,3.0,1898.1,1897.8,6.09147648]
[1743224201322,6.09094474,1898.2,1897.9,5.26891]
[1743224203405,3.0,1898.2,1897.9,5.26891]
[1743224204641,8.26815,1898.2,1897.8,6.03879]
[1743224204937,8.26815,1898.2,1897.8,7.325879]
[1743224205141,3.0,1898.2,1897.8,7.325879]
[1743224205341,3.0,1898.2,1897.9,5.26887]
[1743224206343,3.09094474,1898.4,1897.9,0.05268645]
[1743224206519,3.0,1898.3,1898.0,5.2687]
[1743224206710,3.0,1898.3,1898.0,5.79557]
[1743224208239,3.09094474,1898.4,1898.0,5.79557]
[1743224208938,3.09094474,1898.4,1898.1,6.04177]
[1743224209110,6.06,1898.5,1898.2,5.26808]
[1743224209311,3.0,1898.5,1898.2,1.1362532]
[1743224209560,8.26733,1898.5,1898.2,1.1362532]
[1743224209859,0.794,1898.0,1897.4,0.7735]
[1743224210061,3.09094474,1897.5,1897.3,1.05432761]
[1743224210213,3.09094474,1897.5,1897.2,0.7735]
[1743224211133,3.09094474,1897.5,1897.2,6.04432]
[1743224211317,3.09094474,1897.7,1897.3,5.27045]
[1743224211521,8.36059474,1897.7,1897.4,0.527045]
[1743224211937,8.36059474,1897.7,1897.2,6.04437]
[1743224212130,3.09094474,1897.5,1897.2,6.04437]
[1743224214754,3.09094474,1897.5,1897.2,0.7735]
[1743224215853,3.09094474,1897.5,1897.2,6.0444]
[1743224217054,5.006,1897.9,1897.2,6.0444]
[1743224217055,6.3355954,1898.5,1897.5,0.7735]
[1743224217265,3.09094474,1898.4,1897.9,0.7735]
[1743224217416,3.09094474,1898.0,1897.9,5.26898]
[1743224217611,3.09094474,1898.0,1897.7,0.05268235]
[1743224217612,3.09094474,1898.0,1897.7,0.82618235]
[1743224217816,3.09094474,1898.0,1897.7,11.36482235]
[1743224218059,3.09094474,1898.0,1897.7,6.04279]
[1743224218363,3.09094474,1898.0,1897.7,11.916399]
[1743224218521,3.09094474,1898.0,1897.8,5.26925]
[1743224218717,3.09094474,1898.0,1897.7,11.916459]
[1743224218931,3.09094474,1898.0,1897.8,5.26924]
[1743224219237,3.09094474,1898.0,1897.8,10.53829]
[1743224219447,3.09094474,1898.0,1897.8,6.4606569]
[1743224219817,3.09094474,1898.0,1897.8,11.78247464]
[1743224220032,3.09094474,1898.0,1897.8,6.4606569]
[1743224220248,3.88494474,1898.2,1897.9,5.26898]
[1743224220641,3.88494474,1898.2,1897.8,10.53819]
[1743224220943,3.88494474,1898.2,1897.8,5.26905]
[1743224221150,3.88494474,1898.2,1897.8,10.53817]
[1743224221447,3.88494474,1898.2,1897.9,5.26895]
[1743224223252,4.08697141,1898.2,1897.9,5.26895]
[1743224227160,4.08697141,1898.2,1897.8,10.53814]
[1743224227454,4.08697141,1898.2,1897.9,5.26897]
[1743224230153,9.35530141,1898.2,1897.8,5.26905]
[1743224230841,11.11761855,1898.2,1897.8,5.26905]
[1743224238658,11.11761855,1898.2,1897.8,10.53816]
[1743224238863,9.35530141,1898.2,1897.8,5.26905]
[1743224239227,9.35530141,1898.2,1897.8,10.53819]
[1743224239862,9.35530141,1898.2,1897.8,5.26905]
[1743224240067,7.12257141,1898.4,1898.0,5.26857]
[1743224240265,12.39017141,1898.4,1898.0,5.26857]
[1743224242674,17.65798141,1898.4,1898.0,5.26857]
[1743224242979,3.29297141,1898.2,1898.0,5.26857]
[1743224243758,3.29297141,1898.2,1897.9,0.05268812]
[1743224243947,6.08559,1897.8,1897.4,5.27011]
[1743224244128,3.29297141,1897.6,1897.4,5.27011]
[1743224244332,3.29297141,1897.6,1897.4,10.54036]
[1743224244557,3.29297141,1897.6,1897.5,1.054036]
[1743224244939,3.29297141,1897.6,1897.5,6.324126]
[1743224245843,3.29297141,1897.6,1897.5,1.054036]
[1743224246581,0.8163,1897.9,1897.5,6.324126]
[1743224246781,3.29297141,1897.8,1897.5,6.324126]
[1743224246985,3.29297141,1897.8,1897.6,0.6324126]
[1743224247587,3.29297141,1897.8,1897.5,6.324126]
[1743224249952,3.29297141,1897.8,1897.7,5.26953]
[1743224250158,3.29297141,1897.8,1897.6,6.05714]
[1743224251579,3.29297141,1897.8,1897.6,11.32682]
[1743224251882,5.26883,1898.0,1897.6,11.32682]
[1743224251883,3.29297141,1898.0,1897.6,0.7875]
[1743224252082,3.0,1898.1,1897.9,5.26892]
[1743224252385,3.0,1897.9,1896.8,1.34224243]
[1743224252684,3.0,1897.9,1896.7,0.8049]
[1743224252685,3.29297141,1897.1,1896.7,0.8049]
[1743224252885,4.11267141,1897.3,1896.9,5.27164]
[1743224253085,4.11267141,1897.3,1897.0,0.527164]
[1743224253286,9.38334141,1897.3,1897.0,0.527164]
[1743224253788,4.11267141,1897.3,1897.0,0.527164]
[1743224254354,3.29297141,1897.3,1897.1,5.2712]
[1743224254553,3.29297141,1897.3,1897.1,5.9315264]
[1743224254873,3.29297141,1897.3,1897.1,0.6603264]
[1743224255551,3.29618274,1897.3,1897.1,0.6603264]
[1743224258180,3.29618274,1897.3,1897.1,5.9314964]
[1743224258580,3.29612645,1897.2,1897.1,5.9314964]
[1743224258777,8.36712645,1897.6,1897.3,5.27064]
[1743224258778,3.29612645,1897.4,1897.3,5.27064]
[1743224258966,3.29612645,1897.4,1897.3,0.527064]
[1743224259170,3.29612645,1897.4,1897.2,5.27089]
[1743224260284,0.8197,1897.7,1897.1,5.9315164]
[1743224260447,9.35612645,1897.8,1897.5,5.27008]
[1743224260647,9.35612645,1897.8,1897.5,6.07498]
[1743224260648,3.29612645,1897.8,1897.5,6.07498]
[1743224260852,3.29612645,1897.8,1897.6,5.2698]
[1743224261484,3.29612645,1897.8,1897.5,6.07487]
[1743224261784,3.29612645,1897.8,1897.5,7.26208699]
[1743224262685,3.29612645,1897.8,1897.5,7.209393]
[1743224263592,3.29612645,1897.8,1897.2,5.27092]
[1743224263593,3.29612645,1897.6,1897.3,5.27063]
[1743224263798,3.29612645,1897.4,1897.3,5.27063]
[1743224264300,3.29612645,1897.4,1897.2,11.37381]
[1743224264886,3.29612645,1897.4,1897.3,5.27064]
[1743224266591,3.29612645,1897.6,1897.3,5.27046]
[1743224266756,3.29612645,1897.6,1897.4,5.797296]
[1743224269573,3.29612645,1897.6,1897.4,11.067516]
[1743224270095,3.29612645,1897.6,1897.4,5.797266]
[1743224272098,3.29612645,1897.6,1897.2,6.10299]
[1743224272400,4.05482645,1897.6,1897.3,0.05270085]
[1743224272600,4.05482645,1897.6,1897.3,5.32332085]
[1743224272898,4.05482645,1897.6,1897.4,5.27032]
[1743224273685,4.37452645,1898.4,1897.4,5.27032]
[1743224273686,1.46863959,1898.3,1898.1,5.26842]
[1743224273859,4.76476604,1898.3,1898.1,5.26842]
[1743224274053,4.76476604,1898.3,1898.2,5.26814]
[1743224274258,1.46863959,1898.3,1898.2,5.32081906]
[1743224274473,1.46863959,1898.3,1898.2,6.07244]
[1743224274680,4.05482645,1898.6,1898.3,5.26783]
[1743224274889,4.05482645,1898.6,1898.4,5.26757]
[1743224275086,4.05482645,1898.6,1898.3,5.26783]
[1743224275277,4.05482645,1898.6,1898.3,10.53557]
[1743224275482,4.05482645,1898.6,1898.3,5.26774]
[1743224275674,4.05482645,1898.6,1898.4,5.26754]
[1743224276086,4.05482645,1898.6,1898.4,5.26747]
[1743224276601,3.29612645,1898.6,1898.4,5.26747]
[1743224277556,3.29612645,1898.6,1898.4,5.26746]
[1743224278358,3.29612645,1898.6,1898.4,5.794206]
[1743224278557,3.29612645,1898.6,1898.5,5.26731]
[1743224278861,3.29612645,1898.6,1898.4,5.794196]
[1743224279193,3.29612645,1898.6,1898.4,11.061576]
[1743224280393,3.29612645,1898.6,1898.5,5.26731]
[1743224280689,3.29612645,1898.6,1898.4,5.794126]
[1743224280892,3.29612645,1898.6,1898.4,0.526746]
[1743224281066,3.29612645,1898.6,1898.2,6.07229]
[1743224281265,3.29612645,1898.4,1898.2,11.34028]
[1743224281490,3.29612645,1898.4,1898.2,5.26799]
[1743224282791,3.29612645,1898.4,1898.2,10.53602]
[1743224283002,3.29612645,1898.4,1898.2,11.589622]
[1743224283897,3.29612645,1898.4,1898.2,6.321592]
[1743224284098,3.29612645,1898.4,1898.2,10.53602]
[1743224285004,3.29612645,1898.4,1898.2,5.26799]
[1743224285369,3.29612645,1898.4,1898.2,10.53601]
[1743224286694,3.29612645,1898.4,1898.2,5.26799]
[1743224286895,3.29612645,1898.4,1898.1,5.2683]
[1743224287301,3.29612645,1898.2,1898.1,5.2683]
[1743224287496,3.29612645,1898.4,1898.1,6.402563]
[1743224291905,3.29612645,1898.2,1898.1,6.402563]
[1743224292479,0.7723,1899.6,1899.4,5.26469]
[1743224293018,3.29612645,1899.8,1899.6,5.26409]
[1743224293732,0.7723,1899.9,1899.6,5.26423]
[1743224293877,0.7723,1899.9,1899.6,5.26416]
[1743224293878,3.29612645,1899.8,1899.6,5.26416]
[1743224294077,3.29612645,1899.8,1899.7,5.26398]
[1743224296105,3.29612645,1899.8,1899.6,10.52826]
[1743224296476,3.29612645,1899.8,1899.7,5.26398]
[1743224298209,7.06842645,1900.1,1899.7,6.316568]
[1743224298411,3.29612645,1900.0,1899.8,5.26357]
[1743224299499,3.29612645,1900.0,1899.9,5.26343]
[1743224299699,3.29612645,1900.0,1899.8,5.26357]
[1743224299904,3.29612645,1900.0,1899.6,5.26409]
[1743224300418,3.29612645,1900.0,1899.7,5.26396]
[1743224300626,3.29612645,1900.0,1899.7,6.316765]
[1743224301223,3.29612645,1900.0,1899.7,6.36939845]
[1743224302501,8.55879645,1900.2,1899.7,6.36939845]
[1743224302809,13.82152645,1900.2,1899.7,6.36939845]
[1743224303228,8.55879645,1900.2,1899.7,6.36939845]
[1743224303432,13.82155645,1900.2,1899.7,6.316765]
[1743224303601,13.82155645,1900.2,1899.7,6.36939846]
[1743224303934,8.55879645,1900.2,1899.7,6.36939846]
[1743224304103,8.55879645,1900.2,1899.8,5.2637]
[1743224304826,5.263,1900.1,1899.7,6.316765]
[1743224305133,5.263,1900.1,1899.7,5.26396]
[1743224305429,5.26318,1900.0,1899.6,5.26422]
[1743224305602,5.263,1900.1,1899.6,5.26422]
[1743224305931,5.263,1900.1,1899.7,5.26395]
[1743224306227,5.263,1900.1,1899.7,5.31658375]
[1743224306428,5.263,1900.1,1899.7,6.37466413]
[1743224307730,5.263,1900.1,1899.7,6.32203038]
[1743224308431,5.263,1900.1,1899.7,6.37466414]
[1743224308624,5.263,1900.1,1899.7,6.32203038]
[1743224308828,10.52612,1900.1,1899.7,6.32203038]
[1743224309035,5.263,1900.1,1899.7,6.32203038]
[1743224310239,5.26336,1900.0,1899.7,1.05808038]
[1743224310395,0.7645,1899.9,1899.5,6.07043]
[1743224311696,3.29612645,1900.0,1899.7,5.26381]
[1743224315455,3.29612645,1900.0,1899.8,5.26368]
[1743224315761,3.29612645,1900.0,1899.7,5.26381]
[1743224320857,8.55929645,1900.0,1899.6,5.26421]
[1743224321155,3.29612645,1900.0,1899.6,11.39981752]
[1743224322959,3.29612645,1900.0,1899.7,5.26398]
[1743224323549,3.29612645,1900.0,1899.7,5.31661331]
[1743224323950,13.32963,1900.2,1899.8,5.26347]
[1743224324156,13.32963,1900.2,1899.8,5.79508033]
[1743224324659,5.26289,1900.1,1899.8,0.53161033]
[1743224325855,8.55901645,1900.1,1899.8,0.53161033]
[1743224326032,8.55901645,1900.1,1899.7,5.26393]
[1743224331570,3.29612645,1900.1,1899.7,10.52766]
[1743224331771,3.29612645,1900.1,1899.7,5.26373]
[1743224332246,18.59238,1900.2,1899.8,5.31613096]
[1743224332656,21.88850645,1900.2,1899.8,5.31613096]
[1743224333160,5.2629,1900.1,1899.8,0.05263096]
[1743224334373,5.2629,1900.1,1899.7,5.26393]
[1743224334573,5.2629,1900.1,1899.7,6.40388475]
[1743224336175,10.52605,1900.1,1899.7,1.13995475]
[1743224336374,5.2629,1900.1,1899.7,5.26394]
[1743224345475,5.2632,1900.0,1899.6,6.13561752]